[Event "*** Titled Tuesday 3|2 Blitz"]
[Site "Chess.com"]
[Date "2016.10.04"]
[Round "6"]
[White "cassoulet"]
[Black "David_Klein"]
[Result "0-1"]
[WhiteElo "2299"]
[BlackElo "2397"]
[TimeControl "180+2"]
[EndTime "12:13:19 PDT"]
[Termination "David_Klein won by checkmate"]

1. e4 {[%clk 0:03:02]} 1... c5 {[%clk 0:01:54.2]} 2. Nf3 {[%clk 0:03:00.1]} 2...
e6 {[%clk 0:01:53.5]} 3. d4 {[%clk 0:03:00.5]} 3... cxd4 {[%clk 0:01:55.4]} 4.
Nxd4 {[%clk 0:03:02.1]} 4... Nc6 {[%clk 0:01:56.1]} 5. Nc3 {[%clk 0:03:03.5]}
5... Qc7 {[%clk 0:01:57.2]} 6. Be3 {[%clk 0:03:04.1]} 6... a6 {[%clk 0:01:57.2]}
7. Bd3 {[%clk 0:03:05.3]} 7... Nf6 {[%clk 0:01:58.1]} 8. O-O {[%clk 0:03:06.9]}
8... Nxd4 {[%clk 0:01:59.4]} 9. Bxd4 {[%clk 0:03:08.6]} 9... Bc5 {[%clk
0:02:01.1]} 10. Bxc5 {[%clk 0:03:10.2]} 10... Qxc5 {[%clk 0:02:03]} 11. Kh1
{[%clk 0:03:12.1]} 11... d6 {[%clk 0:02:04.2]} 12. f4 {[%clk 0:03:13.7]} 12...
e5 {[%clk 0:02:05.6]} 13. Qe1 {[%clk 0:03:14.5]} 13... Be6 {[%clk 0:02:03.7]}
14. Na4 {[%clk 0:03:02.3]} 14... Qd4 {[%clk 0:01:57.2]} 15. b3 {[%clk
0:02:57.2]} 15... b5 {[%clk 0:01:53.9]} 16. Nc3 {[%clk 0:02:58]} 16... Rc8
{[%clk 0:01:52]} 17. Ne2 {[%clk 0:02:58.7]} 17... Qc5 {[%clk 0:01:51.5]} 18. a4
{[%clk 0:02:57.6]} 18... O-O {[%clk 0:01:46.3]} 19. axb5 {[%clk 0:02:58]} 19...
axb5 {[%clk 0:01:47]} 20. Ra5 {[%clk 0:02:58.9]} 20... Rb8 {[%clk 0:01:45.4]}
21. fxe5 {[%clk 0:02:52.7]} 21... Qxe5 {[%clk 0:01:44.8]} 22. Nf4 {[%clk
0:02:38.8]} 22... Bd7 {[%clk 0:01:43.9]} 23. Ra7 {[%clk 0:02:21.7]} 23... Bc6
{[%clk 0:01:38.9]} 24. Ra5 {[%clk 0:02:02.6]} 24... Bxe4 {[%clk 0:01:29]} 25.
Bxe4 {[%clk 0:02:03.5]} 25... Nxe4 {[%clk 0:01:28.4]} 26. Nd3 {[%clk 0:02:03.5]}
26... Qd5 {[%clk 0:01:26.4]} 27. Nb4 {[%clk 0:01:57.6]} 27... Qb7 {[%clk
0:01:24.5]} 28. Qe3 {[%clk 0:01:48.4]} 28... Rfe8 {[%clk 0:01:23.7]} 29. Qd4
{[%clk 0:01:43.8]} 29... Qb6 {[%clk 0:01:17.7]} 30. Qxb6 {[%clk 0:01:44.6]}
30... Rxb6 {[%clk 0:01:19.6]} 31. Nd5 {[%clk 0:01:38.9]} 31... Rc6 {[%clk
0:01:19.5]} 32. Rc1 {[%clk 0:01:22.5]} 32... Rc5 {[%clk 0:01:08.2]} 33. Nb4
{[%clk 0:01:16]} 33... h6 {[%clk 0:00:56.7]} 34. h3 {[%clk 0:01:17.1]} 34... Rg5
{[%clk 0:00:54.6]} 35. Kh2 {[%clk 0:01:17.6]} 35... Nf6 {[%clk 0:00:51.7]} 36.
g4 {[%clk 0:01:09]} 36... h5 {[%clk 0:00:51.7]} 37. Rg1 {[%clk 0:00:59.7]} 37...
hxg4 {[%clk 0:00:51.5]} 38. hxg4 {[%clk 0:01:00.2]} 38... Re2+ {[%clk
0:00:51.7]} 39. Kh3 {[%clk 0:01:00.9]} 39... Rge5 {[%clk 0:00:46.7]} 40. Rg3
{[%clk 0:00:57.4]} 40... Ne4 {[%clk 0:00:47.1]} 41. Rf3 {[%clk 0:00:56.3]} 41...
Ng5+ {[%clk 0:00:46.7]} 42. Kg3 {[%clk 0:00:57.5]} 42... Nxf3 {[%clk 0:00:47.8]}
43. Kxf3 {[%clk 0:00:59.4]} 43... g5 {[%clk 0:00:49.1]} 44. Ra6 {[%clk
0:00:55.8]} 44... R5e3# {[%clk 0:00:49.7]} 0-1

[Event "*** Titled Tuesday 3|2 Blitz"]
[Site "Chess.com"]
[Date "2016.10.04"]
[Round "6"]
[White "filali-oujda"]
[Black "NTBT_DHS"]
[Result "0-1"]
[WhiteElo "2306"]
[BlackElo "2449"]
[TimeControl "180+2"]
[EndTime "12:13:39 PDT"]
[Termination "NTBT_DHS won on time"]

1. e4 {[%clk 0:03:02]} 1... g6 {[%clk 0:03:01]} 2. Nc3 {[%clk 0:03:00.3]} 2...
Bg7 {[%clk 0:03:02.2]} 3. Nf3 {[%clk 0:03:01.2]} 3... a6 {[%clk 0:03:02.3]} 4.
a4 {[%clk 0:03:00.4]} 4... d6 {[%clk 0:03:01.7]} 5. Bc4 {[%clk 0:03:01]} 5... e6
{[%clk 0:03:01.6]} 6. O-O {[%clk 0:03:01.8]} 6... b6 {[%clk 0:03:01.8]} 7. d3
{[%clk 0:03:02.4]} 7... Bb7 {[%clk 0:03:03.2]} 8. Be3 {[%clk 0:03:04]} 8... Nd7
{[%clk 0:03:04.4]} 9. Qd2 {[%clk 0:03:03.8]} 9... h6 {[%clk 0:03:04]} 10. Rad1
{[%clk 0:03:02.1]} 10... Ne7 {[%clk 0:03:03.8]} 11. Bb3 {[%clk 0:02:51.2]} 11...
g5 {[%clk 0:03:03.7]} 12. d4 {[%clk 0:02:49.2]} 12... Ng6 {[%clk 0:03:02.4]} 13.
d5 {[%clk 0:02:48.9]} 13... e5 {[%clk 0:02:56.8]} 14. Ne1 {[%clk 0:02:42.4]}
14... O-O {[%clk 0:02:53.7]} 15. Ne2 {[%clk 0:02:18.7]} 15... Nf4 {[%clk
0:02:51.5]} 16. Ng3 {[%clk 0:02:16.1]} 16... Nf6 {[%clk 0:02:50.1]} 17. f3
{[%clk 0:02:13.7]} 17... Bc8 {[%clk 0:02:50.9]} 18. h3 {[%clk 0:02:11.8]} 18...
h5 {[%clk 0:02:45.6]} 19. Nd3 {[%clk 0:01:49.7]} 19... Bh6 {[%clk 0:02:37.1]}
20. Nf2 {[%clk 0:01:35.1]} 20... Bd7 {[%clk 0:02:29.4]} 21. Nf5 {[%clk
0:01:35.3]} 21... Bxf5 {[%clk 0:02:27.9]} 22. exf5 {[%clk 0:01:37.2]} 22... h4
{[%clk 0:02:26.2]} 23. Ng4 {[%clk 0:01:32.6]} 23... Bg7 {[%clk 0:02:27.6]} 24.
Bxf4 {[%clk 0:01:32.9]} 24... exf4 {[%clk 0:02:27.6]} 25. c3 {[%clk 0:01:28.8]}
25... Re8 {[%clk 0:02:26.3]} 26. Rde1 {[%clk 0:01:29.3]} 26... Qd7 {[%clk
0:02:26.3]} 27. Bc2 {[%clk 0:01:27.2]} 27... Nh5 {[%clk 0:01:55.5]} 28. Rxe8+
{[%clk 0:01:22.9]} 28... Rxe8 {[%clk 0:01:55.2]} 29. Re1 {[%clk 0:01:24.4]}
29... Be5 {[%clk 0:01:39.6]} 30. Qe2 {[%clk 0:01:09.3]} 30... Bd4+ {[%clk
0:01:34.3]} 31. cxd4 {[%clk 0:01:07.3]} 31... Rxe2 {[%clk 0:01:35.9]} 32. Rxe2
{[%clk 0:01:07.2]} 32... Kg7 {[%clk 0:01:37.3]} 33. Bd3 {[%clk 0:00:38.8]} 33...
Qxa4 {[%clk 0:01:35.5]} 34. Re7 {[%clk 0:00:27.7]} 34... Qxd4+ {[%clk
0:01:35.8]} 35. Nf2 {[%clk 0:00:27.7]} 35... Ng3 {[%clk 0:01:32.6]} 36. Rxc7
{[%clk 0:00:26.3]} 36... Qxb2 {[%clk 0:01:31.8]} 37. Bc2 {[%clk 0:00:20.3]}
37... Qc1+ {[%clk 0:01:20.4]} 38. Nd1 {[%clk 0:00:20]} 38... Qd2 {[%clk
0:01:18.8]} 39. f6+ {[%clk 0:00:21.9]} 39... Kxf6 {[%clk 0:01:19.2]} 40. Rc4
{[%clk 0:00:18.8]} 40... Qe1+ {[%clk 0:01:19.5]} 0-1

[Event "*** Titled Tuesday 3|2 Blitz"]
[Site "Chess.com"]
[Date "2016.10.04"]
[Round "6"]
[White "SCIM"]
[Black "pKiLz5Rn9b"]
[Result "0-1"]
[WhiteElo "2289"]
[BlackElo "2493"]
[TimeControl "180+2"]
[EndTime "12:13:42 PDT"]
[Termination "pKiLz5Rn9b won by resignation"]

1. d4 {[%clk 0:02:01.9]} 1... e6 {[%clk 0:03:00.8]} 2. c4 {[%clk 0:02:01.3]}
2... Nf6 {[%clk 0:03:02.2]} 3. Nc3 {[%clk 0:02:01.5]} 3... Bb4 {[%clk
0:03:03.3]} 4. e3 {[%clk 0:01:51.3]} 4... O-O {[%clk 0:03:03.3]} 5. Bd3 {[%clk
0:01:51.7]} 5... Nc6 {[%clk 0:03:04.3]} 6. Nf3 {[%clk 0:01:53]} 6... Re8 {[%clk
0:03:04.7]} 7. O-O {[%clk 0:01:53.8]} 7... Bxc3 {[%clk 0:03:04.6]} 8. bxc3
{[%clk 0:01:54]} 8... d6 {[%clk 0:03:06.5]} 9. Nd2 {[%clk 0:01:51.4]} 9... e5
{[%clk 0:03:07.4]} 10. Re1 {[%clk 0:01:51.1]} 10... Bg4 {[%clk 0:03:02.5]} 11.
f3 {[%clk 0:01:50]} 11... Bh5 {[%clk 0:03:03.6]} 12. Ne4 {[%clk 0:01:47.8]}
12... Bg6 {[%clk 0:03:00.8]} 13. Nxf6+ {[%clk 0:01:40.2]} 13... Qxf6 {[%clk
0:03:02]} 14. Bb2 {[%clk 0:01:34.1]} 14... Bxd3 {[%clk 0:02:59.2]} 15. Qxd3
{[%clk 0:01:34.4]} 15... Rad8 {[%clk 0:03:00.2]} 16. Rad1 {[%clk 0:01:24.1]}
16... Qg6 {[%clk 0:02:53.8]} 17. e4 {[%clk 0:01:21]} 17... Rf8 {[%clk 0:02:55]}
18. d5 {[%clk 0:01:18.8]} 18... Nb8 {[%clk 0:02:52.7]} 19. c5 {[%clk 0:01:19.7]}
19... dxc5 {[%clk 0:02:50.8]} 20. c4 {[%clk 0:01:18.5]} 20... f6 {[%clk
0:02:52.3]} 21. Qa3 {[%clk 0:01:17.3]} 21... Na6 {[%clk 0:02:51]} 22. Bc3 {[%clk
0:01:14.7]} 22... Rd6 {[%clk 0:02:27]} 23. Rb1 {[%clk 0:01:09.1]} 23... Rb8
{[%clk 0:02:27.9]} 24. Rb5 {[%clk 0:01:06.4]} 24... Qe8 {[%clk 0:02:25.5]} 25.
Reb1 {[%clk 0:01:06.5]} 25... Qc8 {[%clk 0:02:26.8]} 26. Be1 {[%clk 0:01:01.7]}
26... b6 {[%clk 0:02:23.7]} 27. Qe3 {[%clk 0:00:56.5]} 27... Qb7 {[%clk
0:02:03]} 28. f4 {[%clk 0:00:50.2]} 28... exf4 {[%clk 0:02:03.6]} 29. Qxf4
{[%clk 0:00:50.5]} 29... Re8 {[%clk 0:02:05.3]} 30. Bc3 {[%clk 0:00:50.1]} 30...
Rd7 {[%clk 0:02:02.6]} 31. e5 {[%clk 0:00:43]} 31... fxe5 {[%clk 0:02:01.8]} 32.
Bxe5 {[%clk 0:00:43.8]} 32... Nb4 {[%clk 0:01:59.5]} 33. Bc3 {[%clk 0:00:30.7]}
33... c6 {[%clk 0:01:38.5]} 34. dxc6 {[%clk 0:00:29.4]} 34... Qxc6 {[%clk
0:01:32.6]} 35. Bxb4 {[%clk 0:00:23.7]} 35... a6 {[%clk 0:01:27]} 36. Bc3 {[%clk
0:00:14.5]} 36... axb5 {[%clk 0:01:26.8]} 37. cxb5 {[%clk 0:00:16.1]} 37... Qd6
{[%clk 0:01:25.3]} 38. Qg4 {[%clk 0:00:14.9]} 38... Qd3 {[%clk 0:01:19.4]} 39.
Rf1 {[%clk 0:00:13.4]} 39... Rde7 {[%clk 0:01:11.6]} 40. Bb2 {[%clk 0:00:11.1]}
40... Qe3+ {[%clk 0:01:10.1]} 41. Kh1 {[%clk 0:00:11.6]} 41... Qe2 {[%clk
0:01:10.5]} 42. Qxe2 {[%clk 0:00:04.1]} 42... Rxe2 {[%clk 0:01:11.2]} 43. Bc3
{[%clk 0:00:05.7]} 43... Rxa2 {[%clk 0:01:12.2]} 0-1

[Event "*** Titled Tuesday 3|2 Blitz"]
[Site "Chess.com"]
[Date "2016.10.04"]
[Round "6"]
[White "Lupul_Cenusiu"]
[Black "Gordima"]
[Result "0-1"]
[WhiteElo "2376"]
[BlackElo "2557"]
[TimeControl "180+2"]
[EndTime "12:14:03 PDT"]
[Termination "Gordima won by resignation"]

1. d4 {[%clk 0:03:02]} 1... Nf6 {[%clk 0:03:01]} 2. c4 {[%clk 0:03:02.5]} 2...
g6 {[%clk 0:03:02.1]} 3. Nc3 {[%clk 0:03:03.6]} 3... d5 {[%clk 0:03:03.5]} 4.
Nf3 {[%clk 0:03:04.2]} 4... Bg7 {[%clk 0:03:04.6]} 5. e3 {[%clk 0:03:02.8]} 5...
O-O {[%clk 0:03:03.4]} 6. Qb3 {[%clk 0:03:03.8]} 6... e6 {[%clk 0:03:01.6]} 7.
Bd2 {[%clk 0:02:59.7]} 7... b6 {[%clk 0:03:02.4]} 8. Be2 {[%clk 0:02:56.1]} 8...
Bb7 {[%clk 0:03:03.3]} 9. O-O {[%clk 0:02:56.1]} 9... dxc4 {[%clk 0:02:57.2]}
10. Bxc4 {[%clk 0:02:56.3]} 10... Nbd7 {[%clk 0:02:57.9]} 11. Rfd1 {[%clk
0:02:55.2]} 11... c5 {[%clk 0:02:52.2]} 12. Be1 {[%clk 0:02:42]} 12... Qe7
{[%clk 0:02:37.2]} 13. Be2 {[%clk 0:02:38.5]} 13... cxd4 {[%clk 0:02:34.1]} 14.
Nxd4 {[%clk 0:02:39.5]} 14... Nc5 {[%clk 0:02:31.2]} 15. Qa3 {[%clk 0:02:40.2]}
15... Rfd8 {[%clk 0:02:23.3]} 16. h3 {[%clk 0:02:33.5]} 16... Bf8 {[%clk
0:02:14.2]} 17. f3 {[%clk 0:02:14.6]} 17... e5 {[%clk 0:02:14]} 18. Nc2 {[%clk
0:02:12.1]} 18... e4 {[%clk 0:02:02.9]} 19. f4 {[%clk 0:02:05.2]} 19... Nd3
{[%clk 0:01:40.5]} 20. Qxe7 {[%clk 0:02:04.7]} 20... Bxe7 {[%clk 0:01:42.4]} 21.
Bxd3 {[%clk 0:02:05.9]} 21... exd3 {[%clk 0:01:42.3]} 22. Nd4 {[%clk 0:02:06.2]}
22... Ne4 {[%clk 0:01:31.3]} 23. Rxd3 {[%clk 0:02:02.3]} 23... f5 {[%clk
0:01:32.4]} 24. Nxe4 {[%clk 0:01:52.4]} 24... Bxe4 {[%clk 0:01:32.7]} 25. Rdd1
{[%clk 0:01:53.4]} 25... Rac8 {[%clk 0:01:31]} 26. Rac1 {[%clk 0:01:54.5]} 26...
Kf7 {[%clk 0:01:31.1]} 27. Bc3 {[%clk 0:01:52.9]} 27... g5 {[%clk 0:01:25.4]}
28. fxg5 {[%clk 0:01:53]} 28... Bxg5 {[%clk 0:01:26.6]} 29. Kf2 {[%clk
0:01:52.2]} 29... f4 {[%clk 0:00:59]} 30. exf4 {[%clk 0:01:52.7]} 30... Bxf4
{[%clk 0:01:00.3]} 31. Ra1 {[%clk 0:01:53.7]} 31... Kg6 {[%clk 0:00:57.5]} 32.
Nf3 {[%clk 0:01:47.4]} 32... h5 {[%clk 0:00:55.6]} 33. Re1 {[%clk 0:01:46.2]}
33... Re8 {[%clk 0:00:48.4]} 34. Rad1 {[%clk 0:01:41.4]} 34... Ba8 {[%clk
0:00:25]} 35. Rxe8 {[%clk 0:01:28.5]} 35... Rxe8 {[%clk 0:00:25.8]} 36. Re1
{[%clk 0:01:27.6]} 36... Rxe1 {[%clk 0:00:24.8]} 37. Nxe1 {[%clk 0:01:27.4]}
37... Bd5 {[%clk 0:00:19.3]} 38. a3 {[%clk 0:01:27.8]} 38... Kf5 {[%clk
0:00:19.1]} 39. Nf3 {[%clk 0:01:28.8]} 39... Ke4 {[%clk 0:00:18.6]} 40. g3
{[%clk 0:01:26.1]} 40... Bc1 {[%clk 0:00:16.6]} 41. Nd4 {[%clk 0:01:21.7]} 41...
Be3+ {[%clk 0:00:15.6]} 42. Ke1 {[%clk 0:01:20]} 42... Bxd4 {[%clk 0:00:16]} 43.
Bxd4 {[%clk 0:01:20.5]} 43... Kxd4 {[%clk 0:00:17.5]} 44. Kd2 {[%clk 0:01:21.3]}
44... Ke4 {[%clk 0:00:18.5]} 45. Ke2 {[%clk 0:01:21.9]} 45... Be6 {[%clk
0:00:18.4]} 46. g4 {[%clk 0:01:20.6]} 46... h4 {[%clk 0:00:19.1]} 47. Kf2 {[%clk
0:01:20]} 47... Kf4 {[%clk 0:00:20.4]} 48. Kg2 {[%clk 0:01:21.1]} 48... Bd5+
{[%clk 0:00:21.7]} 49. Kh2 {[%clk 0:01:21.8]} 49... a5 {[%clk 0:00:21.7]} 50. b4
{[%clk 0:01:20.3]} 50... a4 {[%clk 0:00:22.9]} 0-1

[Event "*** Titled Tuesday 3|2 Blitz"]
[Site "Chess.com"]
[Date "2016.10.04"]
[Round "6"]
[White "AdrianaNikolova"]
[Black "FearNoEvil12"]
[Result "1-0"]
[WhiteElo "2252"]
[BlackElo "2056"]
[TimeControl "180+2"]
[EndTime "12:14:21 PDT"]
[Termination "AdrianaNikolova won by resignation"]

1. e4 {[%clk 0:02:50.7]} 1... a6 {[%clk 0:02:59]} 2. d4 {[%clk 0:02:51.4]} 2...
b5 {[%clk 0:02:59.5]} 3. a4 {[%clk 0:02:52.6]} 3... b4 {[%clk 0:02:59.8]} 4. a5
{[%clk 0:02:52.1]} 4... Bb7 {[%clk 0:03:00.1]} 5. Bd3 {[%clk 0:02:53]} 5... Nf6
{[%clk 0:02:59.8]} 6. Qe2 {[%clk 0:02:53.8]} 6... e6 {[%clk 0:03:00.3]} 7. Nf3
{[%clk 0:02:54.2]} 7... d6 {[%clk 0:03:01.7]} 8. O-O {[%clk 0:02:54.7]} 8...
Nbd7 {[%clk 0:03:03.2]} 9. Bg5 {[%clk 0:02:55.3]} 9... h6 {[%clk 0:03:03.8]} 10.
Bh4 {[%clk 0:02:56.3]} 10... g5 {[%clk 0:03:04.8]} 11. Bg3 {[%clk 0:02:57.2]}
11... Rg8 {[%clk 0:03:06.4]} 12. e5 {[%clk 0:02:49.6]} 12... Nd5 {[%clk
0:03:06.4]} 13. c4 {[%clk 0:02:43.6]} 13... bxc3 {[%clk 0:03:06.4]} 14. Nxc3
{[%clk 0:02:44.3]} 14... h5 {[%clk 0:03:07.8]} 15. Nxd5 {[%clk 0:02:27.2]} 15...
Bxd5 {[%clk 0:03:07.6]} 16. h4 {[%clk 0:02:27.9]} 16... gxh4 {[%clk 0:02:58.2]}
17. Bf4 {[%clk 0:02:27.8]} 17... h3 {[%clk 0:02:55.6]} 18. g3 {[%clk 0:02:28.6]}
18... h4 {[%clk 0:02:55]} 19. Kh2 {[%clk 0:02:25.7]} 19... hxg3+ {[%clk
0:02:52.1]} 20. fxg3 {[%clk 0:02:27.6]} 20... Rb8 {[%clk 0:02:39.6]} 21. Bxa6
{[%clk 0:02:03.8]} 21... Rb3 {[%clk 0:02:14.1]} 22. Bb5 {[%clk 0:01:38.5]} 22...
Qa8 {[%clk 0:02:02.4]} 23. Ne1 {[%clk 0:00:55.8]} 23... Bh6 {[%clk 0:01:44.5]}
24. Ba4 {[%clk 0:00:48.8]} 24... Bxf4 {[%clk 0:01:38.8]} 25. Bxb3 {[%clk
0:00:29.1]} 25... Bxg3+ {[%clk 0:01:38.4]} 26. Kxh3 {[%clk 0:00:30.5]} 26...
Bxb3 {[%clk 0:01:38.9]} 27. Qf3 {[%clk 0:00:27.5]} 27... Qxf3 {[%clk 0:01:37.3]}
28. Rxf3 {[%clk 0:00:29.4]} 28... Bxe1 {[%clk 0:01:33.4]} 29. Rxb3 {[%clk
0:00:30.3]} 29... Bd2 {[%clk 0:01:24.1]} 30. a6 {[%clk 0:00:30.4]} 30... Ke7
{[%clk 0:01:15]} 31. a7 {[%clk 0:00:21.3]} 31... Ra8 {[%clk 0:01:12.6]} 32. Rb7
{[%clk 0:00:21.7]} 32... Be3 {[%clk 0:01:03.7]} 33. Rxc7 {[%clk 0:00:19.2]}
33... Bxd4 {[%clk 0:01:02.1]} 34. exd6+ {[%clk 0:00:20.3]} 34... Kxd6 {[%clk
0:01:02.7]} 35. Rb7 {[%clk 0:00:17.4]} 35... e5 {[%clk 0:01:02.5]} 36. Ra6+
{[%clk 0:00:16.3]} 36... Ke7 {[%clk 0:01:00.3]} 37. Ra5 {[%clk 0:00:12.4]} 37...
Ke6 {[%clk 0:00:48.6]} 38. Ra6+ {[%clk 0:00:11.8]} 38... Ke7 {[%clk 0:00:48.6]}
39. Kg4 {[%clk 0:00:13.4]} 39... Kd8 {[%clk 0:00:40.1]} 40. Rd6 {[%clk
0:00:13.3]} 40... Ke7 {[%clk 0:00:27.3]} 41. Rbxd7+ {[%clk 0:00:11.8]} 41... Kf8
{[%clk 0:00:28.3]} 42. Rd8+ {[%clk 0:00:13.2]} 42... Ke7 {[%clk 0:00:27.9]} 43.
Rxa8 {[%clk 0:00:09.5]} 43... Kxd6 {[%clk 0:00:29.1]} 44. Rd8+ {[%clk
0:00:11.1]} 1-0

[Event "*** Titled Tuesday 3|2 Blitz"]
[Site "Chess.com"]
[Date "2016.10.04"]
[Round "6"]
[White "Schemato"]
[Black "annakantane"]
[Result "1-0"]
[WhiteElo "2317"]
[BlackElo "2198"]
[TimeControl "180+2"]
[EndTime "12:14:26 PDT"]
[Termination "Schemato won by checkmate"]

1. c4 {[%clk 0:03:02]} 1... e5 {[%clk 0:02:52.4]} 2. g3 {[%clk 0:03:02.7]} 2...
Nc6 {[%clk 0:02:53.1]} 3. Nc3 {[%clk 0:03:02.8]} 3... Bc5 {[%clk 0:02:53.1]} 4.
Bg2 {[%clk 0:03:00.8]} 4... a6 {[%clk 0:02:54]} 5. e3 {[%clk 0:03:01.3]} 5...
Ba7 {[%clk 0:02:54.3]} 6. Nge2 {[%clk 0:03:02.3]} 6... d6 {[%clk 0:02:49.9]} 7.
h3 {[%clk 0:03:00.1]} 7... Nge7 {[%clk 0:02:47.2]} 8. d4 {[%clk 0:02:57]} 8...
exd4 {[%clk 0:02:17.9]} 9. exd4 {[%clk 0:02:54.2]} 9... Nf5 {[%clk 0:02:18.5]}
10. d5 {[%clk 0:02:21.4]} 10... Ne5 {[%clk 0:01:56.8]} 11. b3 {[%clk 0:02:21.8]}
11... O-O {[%clk 0:01:56.2]} 12. O-O {[%clk 0:02:16]} 12... Bd7 {[%clk
0:01:53.5]} 13. Bb2 {[%clk 0:02:04.6]} 13... b5 {[%clk 0:01:47.3]} 14. cxb5
{[%clk 0:02:00.6]} 14... axb5 {[%clk 0:01:49.2]} 15. Ne4 {[%clk 0:01:57.3]}
15... Bb6 {[%clk 0:01:10.3]} 16. Nd4 {[%clk 0:01:56.6]} 16... Nxd4 {[%clk
0:01:10.5]} 17. Bxd4 {[%clk 0:01:57.1]} 17... Qb8 {[%clk 0:01:07.7]} 18. Kh2
{[%clk 0:01:30.6]} 18... Re8 {[%clk 0:00:50.5]} 19. f4 {[%clk 0:01:29.1]} 19...
Bxd4 {[%clk 0:00:26.7]} 20. Qxd4 {[%clk 0:01:28]} 20... c5 {[%clk 0:00:27.8]}
21. dxc6 {[%clk 0:01:24.2]} 21... Nxc6 {[%clk 0:00:28.8]} 22. Qd2 {[%clk
0:01:03.4]} 22... Rd8 {[%clk 0:00:08.9]} 23. Rfd1 {[%clk 0:00:55.1]} 23... Ra6
{[%clk 0:00:08.4]} 24. Qc2 {[%clk 0:00:24.6]} 24... Be6 {[%clk 0:00:03.7]} 25.
Ng5 {[%clk 0:00:24.5]} 25... Nb4 {[%clk 0:00:04.3]} 26. Qxh7+ {[%clk 0:00:24.1]}
26... Kf8 {[%clk 0:00:04.6]} 27. Qh8+ {[%clk 0:00:22.5]} 27... Ke7 {[%clk
0:00:05.1]} 28. Qxg7 {[%clk 0:00:24.4]} 28... Rg8 {[%clk 0:00:06.4]} 29. Qc3
{[%clk 0:00:18.2]} 29... Nxa2 {[%clk 0:00:07.4]} 30. Qd2 {[%clk 0:00:14]} 30...
Qa7 {[%clk 0:00:08.4]} 31. Re1 {[%clk 0:00:11.1]} 31... Nb4 {[%clk 0:00:07.3]}
32. Rxa6 {[%clk 0:00:07]} 32... Nxa6 {[%clk 0:00:09.2]} 33. f5 {[%clk
0:00:07.7]} 33... Qc7 {[%clk 0:00:09.3]} 34. fxe6 {[%clk 0:00:08.3]} 34... f6
{[%clk 0:00:10.8]} 35. Nf3 {[%clk 0:00:08.6]} 35... Nc5 {[%clk 0:00:12.5]} 36.
Nd4 {[%clk 0:00:09]} 36... d5 {[%clk 0:00:14]} 37. Nf5+ {[%clk 0:00:09.8]} 37...
Ke8 {[%clk 0:00:15.1]} 38. Qxd5 {[%clk 0:00:08.5]} 38... Rg5 {[%clk 0:00:12.9]}
39. e7 {[%clk 0:00:07.6]} 39... Nxb3 {[%clk 0:00:12]} 40. Qxb5+ {[%clk
0:00:07.6]} 40... Kf7 {[%clk 0:00:12.4]} 41. e8=Q# {[%clk 0:00:08.6]} 1-0

[Event "*** Titled Tuesday 3|2 Blitz"]
[Site "Chess.com"]
[Date "2016.10.04"]
[Round "6"]
[White "ZapataCharlesS"]
[Black "VSERGUEI"]
[Result "1/2-1/2"]
[WhiteElo "2597"]
[BlackElo "2550"]
[TimeControl "180+2"]
[EndTime "12:14:29 PDT"]
[Termination "Game drawn by repetition"]

1. e4 {[%clk 0:02:48.1]} 1... e6 {[%clk 0:03:01]} 2. Nf3 {[%clk 0:02:48.4]} 2...
d5 {[%clk 0:03:02.5]} 3. exd5 {[%clk 0:02:50.3]} 3... exd5 {[%clk 0:03:03.2]} 4.
d4 {[%clk 0:02:51.6]} 4... Nc6 {[%clk 0:03:04.3]} 5. Bd3 {[%clk 0:02:51.6]} 5...
Nb4 {[%clk 0:03:05.1]} 6. Be2 {[%clk 0:02:51]} 6... Bf5 {[%clk 0:03:05.2]} 7.
Na3 {[%clk 0:02:41.5]} 7... Nc6 {[%clk 0:03:05.6]} 8. Nb1 {[%clk 0:02:35.1]}
8... Bd6 {[%clk 0:03:05.1]} 9. O-O {[%clk 0:02:28.5]} 9... Nge7 {[%clk
0:03:05.1]} 10. c4 {[%clk 0:02:24.4]} 10... dxc4 {[%clk 0:03:05.4]} 11. Bxc4
{[%clk 0:02:04.1]} 11... O-O {[%clk 0:03:05.6]} 12. Nc3 {[%clk 0:02:05.3]} 12...
Ng6 {[%clk 0:02:58.6]} 13. Be3 {[%clk 0:02:05.3]} 13... a6 {[%clk 0:02:55.6]}
14. a3 {[%clk 0:02:06]} 14... b5 {[%clk 0:02:55.4]} 15. Bd3 {[%clk 0:02:04.4]}
15... Bxd3 {[%clk 0:02:52]} 16. Qxd3 {[%clk 0:02:06.3]} 16... Na5 {[%clk
0:02:52.7]} 17. Rad1 {[%clk 0:02:06.9]} 17... Nc4 {[%clk 0:02:53.4]} 18. Bc1
{[%clk 0:02:07.1]} 18... Re8 {[%clk 0:02:52.3]} 19. g3 {[%clk 0:02:04]} 19...
Qd7 {[%clk 0:02:51.6]} 20. Rfe1 {[%clk 0:02:01.5]} 20... h6 {[%clk 0:02:50]} 21.
Rxe8+ {[%clk 0:01:45.5]} 21... Rxe8 {[%clk 0:02:49.5]} 22. Kg2 {[%clk
0:01:45.4]} 22... c6 {[%clk 0:02:43.8]} 23. h3 {[%clk 0:01:46.2]} 23... a5
{[%clk 0:02:39]} 24. Ne4 {[%clk 0:01:47]} 24... a4 {[%clk 0:02:37.4]} 25. d5
{[%clk 0:01:37.4]} 25... c5 {[%clk 0:02:32.5]} 26. Re1 {[%clk 0:01:37.5]} 26...
Bf8 {[%clk 0:02:27.6]} 27. Bd2 {[%clk 0:01:15]} 27... Nxb2 {[%clk 0:02:25.6]}
28. Qe2 {[%clk 0:01:12.9]} 28... Rd8 {[%clk 0:02:13.5]} 29. Bc3 {[%clk
0:01:00.5]} 29... Nc4 {[%clk 0:02:11.5]} 30. Bf6 {[%clk 0:01:01.5]} 30... Rc8
{[%clk 0:02:06.6]} 31. Ba1 {[%clk 0:00:56]} 31... Qxd5 {[%clk 0:02:05.3]} 32.
Nc3 {[%clk 0:00:56.5]} 32... Qc6 {[%clk 0:02:04.7]} 33. Nxa4 {[%clk 0:00:56.8]}
33... Nxa3 {[%clk 0:01:58.2]} 34. Nc3 {[%clk 0:00:52.5]} 34... b4 {[%clk
0:01:58.5]} 35. Ne4 {[%clk 0:00:54]} 35... c4 {[%clk 0:01:59.2]} 36. Nd4 {[%clk
0:00:53.9]} 36... Qb7 {[%clk 0:01:59.4]} 37. Qf3 {[%clk 0:00:54.2]} 37... Qa8
{[%clk 0:01:56.1]} 38. h4 {[%clk 0:00:47.5]} 38... Ne5 {[%clk 0:01:54.2]} 39.
Qf5 {[%clk 0:00:47.9]} 39... Nd3 {[%clk 0:01:54.9]} 40. Re3 {[%clk 0:00:44]}
40... b3 {[%clk 0:01:49.3]} 41. Rf3 {[%clk 0:00:43.3]} 41... Qb7 {[%clk
0:01:47.1]} 42. Nxb3 {[%clk 0:00:41.6]} 42... cxb3 {[%clk 0:01:39.9]} 43. Nf6+
{[%clk 0:00:36.1]} 43... gxf6 {[%clk 0:01:35]} 44. Qg4+ {[%clk 0:00:37.3]} 44...
Kh7 {[%clk 0:01:21.6]} 45. Qf5+ {[%clk 0:00:37.7]} 45... Kg8 {[%clk 0:01:19.9]}
46. Qg4+ {[%clk 0:00:37.7]} 46... Kh7 {[%clk 0:00:18.5]} 47. Qf5+ {[%clk
0:00:37.2]} 47... Kg8 {[%clk 0:00:19.2]} 48. Qg4+ {[%clk 0:00:38.1]} 1/2-1/2